[Event "55th Rubinstein Memorial-C 2019"]
[Site "Polanica-Zdroj"]
[Date "2019.08.17"]
[Round "1.25"]
[White "Jeziorny, Janusz"]
[Black "Zalega, Maciej"]
[Result "0-1"]
[ECO "B88"]
[WhiteElo "1780"]
[BlackElo "1429"]
[Annotator "NA"]
[PlyCount "132"]
[EventDate "2019.08.17"]
[EventType "swiss"]
[EventCountry "POL"]
[SourceTitle "playchess.com"]
[Source "ChessBase"]
[SourceQuality "1"]
[TimeControl "40/5400+30:1800+30"]

1. e4 {[%emt 0:00:00]} c5 {[%emt 0:00:00]} 2. Nf3 {[%emt 0:00:00]} d6 {[%emt 0:00:00]} 3. d4 {[%emt 0:00:00]} cxd4 {[%emt 0:00:00]} 4. Nxd4 {[%emt 0:00:09]} Nf6 {[%emt 0:00:00]} 5. Nc3 {[%emt 0:00:19]} Nc6 {[%emt 0:00:00]} 6. Bc4 {[%emt 0:02:29]} e6 {[%emt 0:00:00]} 7. Bb3 {[%emt 0:00:29]} Be7 {[%emt 0:02:46]} 8. Be3 {[%emt 0:00:57]} a6 {[%emt 0:02:11]} 9. O-O {[%emt 0:02:13]} Nxd4 {[%emt 0:02:23]} 10. Bxd4 {[%emt 0:00:28]} b5 {[%emt 0:02:12]} 11. a3 {[%emt 0:06:42]} Bb7 {[%emt 0:02:19]} 12. Qd3 {[%emt 0:01:59]} O-O {[%emt 0:07:39]} 13. Rae1 {[%emt 0:02:33]} Nd7 {[%emt 0:12:43]} 14. Qg3 {[%emt 0:02:31]} g6 {[%emt 0:21:43]} 15. Rd1 {[%emt 0:15:55]} Rc8 {[%emt 0:14:02]} 16. f4 {[%emt 0:05:22]} Bf6 {[%emt 0:10:01]} 17. f5 {[%emt 0:05:47]} Bxd4+ {[%emt 0:06:01]} 18. Rxd4 {[%emt 0:00:23]} Qb6 {[%emt 0:01:50]} 19. Qf2 {[%emt 0:09:30]} Nc5 {[%emt 0:04:59]} 20. Rfd1 {[%emt 0:08:47]} Nxb3 {[%emt 0:00:13]} 21. cxb3 {[%emt 0:00:17]} Rfd8 {[%emt 0:01:47]} 22. e5 {[%emt 0:04:02]} d5 {[%emt 0:03:42]} 23. f6 {[%emt 0:02:55]} h5 {[%emt 0:02:26]} 24. g4 {[%emt 0:04:25]} Kh7 {[%emt 0:01:04]} 25. R1d3 {[%emt 0:04:07]} g5 {[%emt 0:00:58]} 26. gxh5 {[%emt 0:02:46]} a5 {[%emt 0:00:26]} 27. Rg4 {[%emt 0:10:15]} Qxf2+ {[%emt 0:01:31]} 28. Kxf2 {[%emt 0:00:14]} Kh6 {[%emt 0:00:18]} 29. Nxb5 {[%emt 0:03:35]} Ba6 {[%emt 0:00:22]} 30. a4 {[%emt 0:00:14]} Rc2+ {[%emt 0:00:25]} 31. Kg3 {[%emt 0:01:06]} Rxb2 {[%emt 0:00:20]} 32. Rc3 {[%emt 0:00:38]} Bxb5 {[%emt 0:00:20]} 33. axb5 {[%emt 0:00:10]} Rb8 {[%emt 0:00:14]} 34. h4 {[%emt 0:01:46]} gxh4+ {[%emt 0:01:17]} 35. Kxh4 {[%emt 0:00:16]} Rxb5 {[%emt 0:00:22]} 36. Rg8 {[%emt 0:00:29]} Rb4+ {[%emt 0:00:48]} 37. Rg4 {[%emt 0:03:34]} Rh2+ {[%emt 0:00:25]} 38. Kg3 {[%emt 0:00:28]} Rxg4+ {[%emt 0:00:27]} 39. Kxg4 {[%emt 0:00:05]} Rxh5 {[%emt 0:00:18]} 40. Rc8 {[%emt 0:00:16]} Rxe5 {[%emt 0:00:32]} 41. Rc5 {[%emt 0:30:31]} Re4+ {[%emt 0:30:17]} 42. Kf3 {[%emt 0:00:11]} Rb4 {[%emt 0:00:23]} 43. Rxa5 {[%emt 0:00:15]} Rxb3+ {[%emt 0:00:05]} 44. Kf4 {[%emt 0:00:23]} Kg6 {[%emt 0:00:08]} 45. Ra1 {[%emt 0:00:49]} Kxf6 {[%emt 0:00:11]} 46. Rd1 {[%emt 0:00:15]} e5+ {[%emt 0:00:10]} 47. Kg4 {[%emt 0:00:06]} d4 {[%emt 0:00:10]} 48. Rd2 {[%emt 0:00:54]} Re3 {[%emt 0:00:11]} 49. Ra2 {[%emt 0:00:41]} Ke6 {[%emt 0:00:21]} 50. Ra6+ {[%emt 0:00:45]} Kd5 {[%emt 0:00:04]} 51. Ra7 {[%emt 0:00:08]} Re4+ {[%emt 0:00:49]} 52. Kf3 {[%emt 0:00:18]} Rf4+ {[%emt 0:00:08]} 53. Ke2 {[%emt 0:00:05]} Ke4 {[%emt 0:00:03]} 54. Ra4 {[%emt 0:00:20]} f5 {[%emt 0:00:34]} 55. Rb4 {[%emt 0:00:15]} Rh4 {[%emt 0:00:10]} 56. Ra4 {[%emt 0:00:13]} Rh2+ {[%emt 0:00:06]} 57. Kf1 {[%emt 0:00:17]} f4 {[%emt 0:00:19]} 58. Rb4 {[%emt 0:00:15]} Ke3 {[%emt 0:00:10]} 59. Kg1 {[%emt 0:00:39]} Ra2 {[%emt 0:00:08]} 60. Rb5 {[%emt 0:00:26]} e4 {[%emt 0:00:05]} 61. Rb1 {[%emt 0:00:23]} d3 {[%emt 0:00:26]} 62. Re1+ {[%emt 0:00:45]} Kf3 {[%emt 0:00:05]} 63. Rf1+ {[%emt 0:00:30]} Kg3 {[%emt 0:00:03]} 64. Kh1 {[%emt 0:00:16]} f3 {[%emt 0:00:11]} 65. Rg1+ {[%emt 0:01:16]} Kh3 {[%emt 0:00:11]} 66. Rd1 {[%emt 0:00:19]} Rh2+ {[%emt 0:00:04] Re1} 0-1

[Event "55th Rubinstein Memorial-C 2019"]
[Site "Polanica-Zdroj"]
[Date "2019.08.17"]
[Round "1.26"]
[White "Nowakowski, Michal"]
[Black "Ciechonski, Piotr"]
[Result "1-0"]
[ECO "B50"]
[WhiteElo "1420"]
[BlackElo "1767"]
[Annotator "NA"]
[PlyCount "131"]
[EventDate "2019.08.17"]
[EventType "swiss"]
[EventCountry "POL"]
[SourceTitle "playchess.com"]
[Source "ChessBase"]
[SourceQuality "1"]
[TimeControl "40/5400+30:1800+30"]

1. e4 {[%emt 0:00:00]} c5 {[%emt 0:00:00]} 2. Nf3 {[%emt 0:00:16]} d6 {[%emt 0:00:02]} 3. Nc3 {[%emt 0:00:47]} Nc6 {[%emt 0:00:27]} 4. d3 {[%emt 0:01:33]} Nf6 {[%emt 0:00:14]} 5. Be2 {[%emt 0:00:25]} g6 {[%emt 0:00:11]} 6. O-O {[%emt 0:00:38]} Bg7 {[%emt 0:00:25]} 7. h3 {[%emt 0:00:47]} O-O {[%emt 0:00:13]} 8. Nh2 {[%emt 0:00:26]} Nd4 {[%emt 0:00:38]} 9. f4 {[%emt 0:01:29]} b5 {[%emt 0:00:44]} 10. Bf3 {[%emt 0:00:29]} Bb7 {[%emt 0:03:50]} 11. Ne2 {[%emt 0:01:32]} Nxf3+ {[%emt 0:00:33]} 12. Nxf3 {[%emt 0:00:17]} a5 {[%emt 0:00:40]} 13. Ng3 {[%emt 0:00:50]} Qb6 {[%emt 0:01:22]} 14. f5 {[%emt 0:01:58]} a4 {[%emt 0:01:03]} 15. Kh2 {[%emt 0:02:02]} b4 {[%emt 0:00:30]} 16. Be3 {[%emt 0:00:34]} Nd7 {[%emt 0:00:49]} 17. Rb1 {[%emt 0:00:44]} Qc7 {[%emt 0:01:02]} 18. Qd2 {[%emt 0:01:41]} a3 {[%emt 0:00:42]} 19. b3 {[%emt 0:00:12]} d5 {[%emt 0:01:28]} 20. Kg1 {[%emt 0:01:10]} dxe4 {[%emt 0:05:09]} 21. dxe4 {[%emt 0:00:17]} Rad8 {[%emt 0:00:34]} 22. Qf2 {[%emt 0:01:02]} c4 {[%emt 0:02:57]} 23. Rbd1 {[%emt 0:00:55]} Nf6 {[%emt 0:04:13]} 24. Bb6 {[%emt 0:01:42]} Qc8 {[%emt 0:02:07]} 25. Rxd8 {[%emt 0:00:48]} Rxd8 {[%emt 0:00:12]} 26. Bxd8 {[%emt 0:00:11]} Qxd8 {[%emt 0:00:02]} 27. e5 {[%emt 0:01:30]} Ne8 {[%emt 0:02:42]} 28. Qc5 {[%emt 0:00:37]} cxb3 {[%emt 0:02:45]} 29. cxb3 {[%emt 0:00:17]} Ba6 {[%emt 0:02:07]} 30. Rf2 {[%emt 0:00:47]} e6 {[%emt 0:01:25]} 31. fxg6 {[%emt 0:01:13]} hxg6 {[%emt 0:01:23]} 32. Qxb4 {[%emt 0:00:39]} Bh6 {[%emt 0:01:45]} 33. Qe1 {[%emt 0:02:55]} Qb6 {[%emt 0:01:01]} 34. Kh2 {[%emt 0:01:07]} Bd3 {[%emt 0:00:35]} 35. Nd2 {[%emt 0:00:47]} Qb4 {[%emt 0:03:34]} 36. Nf3 {[%emt 0:00:26]} Qb6 {[%emt 0:01:00]} 37. Nf1 {[%emt 0:03:02]} Ng7 {[%emt 0:01:29]} 38. g4 {[%emt 0:00:19]} Bf4+ {[%emt 0:03:17]} 39. Kg2 {[%emt 0:01:04]} g5 {[%emt 0:01:22]} 40. Qc3 {[%emt 0:01:24]} Ba6 {[%emt 0:03:30]} 41. Qd4 {[%emt 0:30:40]} Qxd4 {[%emt 0:31:12]} 42. Nxd4 {[%emt 0:00:05]} Bxe5 {[%emt 0:00:32]} 43. Nc2 {[%emt 0:01:01]} Bb7+ {[%emt 0:01:07]} 44. Kg1 {[%emt 0:00:08]} Bb2 {[%emt 0:01:08]} 45. Nd2 {[%emt 0:00:24]} Ba6 {[%emt 0:03:12]} 46. Nb1 {[%emt 0:00:11]} Bd3 {[%emt 0:03:51]} 47. Nbxa3 {[%emt 0:00:07]} f5 {[%emt 0:01:35]} 48. b4 {[%emt 0:00:50]} f4 {[%emt 0:00:28]} 49. Rd2 {[%emt 0:00:20]} Be4 {[%emt 0:01:48]} 50. b5 {[%emt 0:01:38]} e5 {[%emt 0:00:42]} 51. Nc4 {[%emt 0:00:23]} Bc3 {[%emt 0:01:06]} 52. Re2 {[%emt 0:00:15]} Bd3 {[%emt 0:00:29]} 53. b6 {[%emt 0:00:39]} Bxc4 {[%emt 0:23:37]} 54. b7 {[%emt 0:02:59]} Bxe2 {[%emt 0:00:17]} 55. b8=Q+ {[%emt 0:00:09]} Kh7 {[%emt 0:00:39]} 56. Qc7 {[%emt 0:00:29]} Bb2 {[%emt 0:01:54]} 57. a4 {[%emt 0:00:15]} e4 {[%emt 0:02:03]} 58. a5 {[%emt 0:00:40]} f3 {[%emt 0:01:26]} 59. Kf2 {[%emt 0:00:26]} Bc1 {[%emt 0:02:14]} 60. Ne3 {[%emt 0:00:13]} Bd3 {[%emt 0:01:35]} 61. Qxc1 {[%emt 0:00:36]} Ne6 {[%emt 0:00:07]} 62. Qc8 {[%emt 0:01:13]} Nf4 {[%emt 0:00:15]} 63. Qd7+ {[%emt 0:00:20]} Kh8 {[%emt 0:00:54]} 64. Nf5 {[%emt 0:00:27]} Nxh3+ {[%emt 0:01:07]} 65. Ke3 {[%emt 0:00:06]} f2 {[%emt 0:01:25]} 66. Qg7# 1-0

[Event "55th Rubinstein Memorial-C 2019"]
[Site "Polanica-Zdroj"]
[Date "2019.08.17"]
[Round "1.27"]
[White "Ziemski, Przemyslaw"]
[Black "Rzenca, Jerzy"]
[Result "0-1"]
[ECO "B13"]
[WhiteElo "1759"]
[BlackElo "1419"]
[Annotator "NA"]
[PlyCount "72"]
[EventDate "2019.08.17"]
[EventType "swiss"]
[EventCountry "POL"]
[SourceTitle "playchess.com"]
[Source "ChessBase"]
[SourceQuality "1"]
[TimeControl "40/5400+30:1800+30"]

1. e4 {[%emt 0:00:00]} c6 {[%emt 0:00:00]} 2. d4 {[%emt 0:00:20]} d5 {[%emt 0:00:00]} 3. exd5 {[%emt 0:00:52]} cxd5 {[%emt 0:00:00]} 4. Bf4 {[%emt 0:00:35]} Nc6 {[%emt 0:01:51]} 5. Nc3 {[%emt 0:00:37]} a6 {[%emt 0:00:31]} 6. Nf3 {[%emt 0:01:22]} Bg4 {[%emt 0:01:24]} 7. Be2 {[%emt 0:01:27]} Nf6 {[%emt 0:03:38]} 8. O-O {[%emt 0:05:31]} e6 {[%emt 0:03:40]} 9. Ne5 {[%emt 0:04:54]} Bxe2 {[%emt 0:15:11]} 10. Nxe2 {[%emt 0:00:20]} Be7 {[%emt 0:05:11]} 11. c3 {[%emt 0:02:14]} O-O {[%emt 0:03:40]} 12. Ng3 {[%emt 0:07:08]} Nxe5 {[%emt 0:02:42]} 13. dxe5 {[%emt 0:06:53]} Nd7 {[%emt 0:09:20]} 14. Qg4 {[%emt 0:01:54]} Kh8 {[%emt 0:01:52]} 15. Rae1 {[%emt 0:03:39]} Rg8 {[%emt 0:09:03]} 16. Bc1 {[%emt 0:03:09]} b5 {[%emt 0:03:24]} 17. f4 {[%emt 0:06:09]} g6 {[%emt 0:03:10]} 18. Kh1 {[%emt 0:05:29]} Rb8 {[%emt 0:01:57]} 19. a3 {[%emt 0:01:40]} a5 {[%emt 0:00:10]} 20. Ne2 {[%emt 0:01:51]} b4 {[%emt 0:03:55]} 21. axb4 {[%emt 0:01:26]} axb4 {[%emt 0:00:15]} 22. Nd4 {[%emt 0:03:02]} Rc8 {[%emt 0:02:23]} 23. Re3 {[%emt 0:04:52]} bxc3 {[%emt 0:07:35]} 24. bxc3 {[%emt 0:00:08]} Nc5 {[%emt 0:02:08]} 25. Ba3 {[%emt 0:09:37]} Ne4 {[%emt 0:00:27]} 26. Bxe7 {[%emt 0:00:12]} Qxe7 {[%emt 0:00:01]} 27. Ne2 {[%emt 0:00:38]} Qc5 {[%emt 0:01:34]} 28. Rxe4 {[%emt 0:07:15]} dxe4 {[%emt 0:00:37]} 29. Qg5 {[%emt 0:00:14]} Qf8 {[%emt 0:02:46]} 30. Ng3 {[%emt 0:00:18]} e3 {[%emt 0:01:40]} 31. Ne4 {[%emt 0:00:51]} Qd8 {[%emt 0:01:51]} 32. Nf6 {[%emt 0:10:15]} Rg7 {[%emt 0:00:29]} 33. Qg3 {[%emt 0:01:08]} Rxc3 {[%emt 0:00:34]} 34. Qf3 {[%emt 0:00:21]} Rg8 {[%emt 0:05:43]} 35. Qh3 {[%emt 0:05:26]} h5 {[%emt 0:00:38]} 36. Nxg8 {[%emt 0:01:11]} e2 {[%emt 0:00:30]} 0-1

[Event "55th Rubinstein Memorial-C 2019"]
[Site "Polanica-Zdroj"]
[Date "2019.08.17"]
[Round "1.28"]
[White "Liskiewicz, Jakub"]
[Black "Szydelko, Michal"]
[Result "0-1"]
[ECO "D58"]
[WhiteElo "1417"]
[BlackElo "1752"]
[Annotator "NA"]
[PlyCount "111"]
[EventDate "2019.08.17"]
[EventType "swiss"]
[EventCountry "POL"]
[SourceTitle "playchess.com"]
[Source "ChessBase"]
[SourceQuality "1"]
[TimeControl "40/5400+30:1800+30"]

1. d4 {[%emt 0:00:00]} d5 {[%emt 0:00:00]} 2. c4 {[%emt 0:00:00]} e6 {[%emt 0:00:00]} 3. Nc3 {[%emt 0:00:06]} Nf6 {[%emt 0:00:01]} 4. Bg5 {[%emt 0:00:19]} Be7 {[%emt 0:00:12]} 5. Nf3 {[%emt 0:00:27]} h6 {[%emt 0:00:10]} 6. Bh4 {[%emt 0:00:20]} O-O {[%emt 0:00:17]} 7. e3 {[%emt 0:00:18]} b6 {[%emt 0:00:15]} 8. cxd5 {[%emt 0:00:41]} exd5 {[%emt 0:00:29]} 9. Be2 {[%emt 0:00:35]} Bb7 {[%emt 0:00:12]} 10. O-O {[%emt 0:00:23]} Nbd7 {[%emt 0:00:25]} 11. Rc1 {[%emt 0:00:39]} c5 {[%emt 0:01:42]} 12. dxc5 {[%emt 0:00:37]} bxc5 {[%emt 0:00:40]} 13. Qc2 {[%emt 0:01:40]} Rc8 {[%emt 0:07:46]} 14. Rfd1 {[%emt 0:00:34]} Qb6 {[%emt 0:03:03]} 15. Bg3 {[%emt 0:12:04]} Rfd8 {[%emt 0:04:51]} 16. Nd2 {[%emt 0:13:04]} Qe6 {[%emt 0:17:35]} 17. Bf3 {[%emt 0:04:11]} Ne5 {[%emt 0:08:29]} 18. Bxe5 {[%emt 0:03:06]} Qxe5 {[%emt 0:00:05]} 19. Nb3 {[%emt 0:01:49]} Ba6 {[%emt 0:13:30]} 20. Re1 {[%emt 0:09:51]} h5 {[%emt 0:12:21]} 21. Rcd1 {[%emt 0:02:23]} h4 {[%emt 0:03:09]} 22. Rd2 {[%emt 0:06:03]} d4 {[%emt 0:03:21]} 23. Nd1 {[%emt 0:03:59]} Bd6 {[%emt 0:05:24]} 24. g3 {[%emt 0:01:57]} hxg3 {[%emt 0:00:09]} 25. hxg3 {[%emt 0:00:15]} d3 {[%emt 0:00:58]} 26. Qc3 {[%emt 0:01:26]} Qg5 {[%emt 0:00:41]} 27. Kg2 {[%emt 0:01:36]} Ng4 {[%emt 0:04:17]} 28. Qa5 {[%emt 0:05:34]} Bc4 {[%emt 0:02:05]} 29. Qa4 {[%emt 0:02:21]} Be6 {[%emt 0:01:57]} 30. Nc3 {[%emt 0:06:41]} Nxf2 {[%emt 0:06:57]} 31. Qh4 {[%emt 0:02:27]} Nh3 {[%emt 0:03:39]} 32. Ne4 {[%emt 0:02:16]} Qxh4 {[%emt 0:00:45]} 33. gxh4 {[%emt 0:00:12]} Be7 {[%emt 0:00:27]} 34. Kg3 {[%emt 0:01:15]} f5 {[%emt 0:00:33]} 35. Nc3 {[%emt 0:00:35]} g5 {[%emt 0:00:31]} 36. Bg2 {[%emt 0:03:07]} f4+ {[%emt 0:00:32]} 37. Kh2 {[%emt 0:00:59]} g4 {[%emt 0:00:26]} 38. Bxh3 {[%emt 0:01:17]} gxh3 {[%emt 0:00:05]} 39. exf4 {[%emt 0:00:09]} Kf7 {[%emt 0:00:35]} 40. f5 {[%emt 0:02:36]} Bxf5 {[%emt 0:00:32]} 41. Rf2 {[%emt 0:30:26]} Bd6+ {[%emt 0:30:32]} 42. Kg1 {[%emt 0:00:21]} Rg8+ {[%emt 0:00:13]} 43. Kh1 {[%emt 0:00:12]} Kg6 {[%emt 0:00:12]} 44. Rg1+ {[%emt 0:00:21]} Kf6 {[%emt 0:01:23]} 45. Ne4+ {[%emt 0:00:22]} Ke5 {[%emt 0:00:19]} 46. Rxf5+ {[%emt 0:00:37]} Kxe4 {[%emt 0:00:05]} 47. Rgf1 {[%emt 0:01:21]} Rg2 {[%emt 0:00:23]} 48. Nd2+ {[%emt 0:01:33]} Rxd2 {[%emt 0:00:07]} 49. Rg5 {[%emt 0:00:49]} Rh2+ {[%emt 0:00:08]} 50. Kg1 {[%emt 0:00:12]} Rg2+ {[%emt 0:00:05]} 51. Rxg2 {[%emt 0:00:22]} hxg2 {[%emt 0:00:04]} 52. Kxg2 {[%emt 0:00:50]} Rg8+ {[%emt 0:00:03]} 53. Kf2 {[%emt 0:00:16]} Rf8+ {[%emt 0:00:51]} 54. Kg1 {[%emt 0:00:15]} Rxf1+ {[%emt 0:00:07]} 55. Kxf1 {[%emt 0:00:12]} Bg3 {[%emt 0:00:01]} 56. h5 {[%emt 0:00:14]} 0-1

[Event "55th Rubinstein Memorial-C 2019"]
[Site "Polanica-Zdroj"]
[Date "2019.08.17"]
[Round "1.29"]
[White "Gajzner, Ryszard"]
[Black "Jedrzejczak, Lukasz"]
[Result "1/2-1/2"]
[ECO "A30"]
[WhiteElo "1740"]
[BlackElo "1412"]
[Annotator "NA"]
[PlyCount "65"]
[EventDate "2019.08.17"]
[EventType "swiss"]
[EventCountry "POL"]
[SourceTitle "playchess.com"]
[Source "ChessBase"]
[SourceQuality "1"]
[TimeControl "40/5400+30:1800+30"]

1. Nf3 {[%emt 0:00:00]} Nf6 {[%emt 0:00:00]} 2. c4 {[%emt 0:00:00]} e6 {[%emt 0:01:58]} 3. g3 {[%emt 0:00:00]} b6 {[%emt 0:00:36]} 4. Bg2 {[%emt 0:00:00]} Bb7 {[%emt 0:00:09]} 5. O-O {[%emt 0:00:07]} c5 {[%emt 0:01:25]} 6. Nc3 {[%emt 0:02:46]} Be7 {[%emt 0:01:50]} 7. b3 {[%emt 0:00:29]} O-O {[%emt 0:00:30]} 8. Bb2 {[%emt 0:00:07]} d5 {[%emt 0:01:56]} 9. Ne5 {[%emt 0:18:08]} Nbd7 {[%emt 0:03:55]} 10. f4 {[%emt 0:05:58]} Qc8 {[%emt 0:09:39]} 11. e3 {[%emt 0:16:32]} dxc4 {[%emt 0:12:26]} 12. bxc4 {[%emt 0:03:45]} Bxg2 {[%emt 0:05:48]} 13. Kxg2 {[%emt 0:00:06]} Nxe5 {[%emt 0:00:08]} 14. fxe5 {[%emt 0:00:18]} Nd7 {[%emt 0:00:12]} 15. Ne4 {[%emt 0:03:31]} Qc6 {[%emt 0:14:54]} 16. Qf3 {[%emt 0:01:04]} Kh8 {[%emt 0:01:49]} 17. Kg1 {[%emt 0:05:57]} Rad8 {[%emt 0:03:59]} 18. Rf2 {[%emt 0:07:25]} Qa4 {[%emt 0:03:21]} 19. d3 {[%emt 0:06:44]} Nb8 {[%emt 0:03:36]} 20. Rd2 {[%emt 0:03:36]} Nc6 {[%emt 0:01:58]} 21. Nc3 {[%emt 0:03:09]} Nxe5 {[%emt 0:00:37]} 22. Qe4 {[%emt 0:00:08]} Qa5 {[%emt 0:01:37]} 23. Rf2 {[%emt 0:02:34]} Nxd3 {[%emt 0:00:48]} 24. Raf1 {[%emt 0:04:30]} Nxf2 25. Rxf2 Bf6 {[%emt 0:10:21]} 26. Rxf6 {[%emt 0:00:51]} gxf6 {[%emt 0:00:16]} 27. Qf4 {[%emt 0:00:15]} Kg7 {[%emt 0:02:46]} 28. Qg4+ {[%emt 0:00:28]} Kh8 {[%emt 0:00:27]} 29. Qf4 {[%emt 0:02:38]} Kg7 {[%emt 0:04:47]} 30. Qg4+ {[%emt 0:06:19]} Kh8 31. Ne2 Qe1+ 32. Kg2 e5 33. Qf3 1/2-1/2

[Event "55th Rubinstein Memorial-C 2019"]
[Site "Polanica-Zdroj"]
[Date "2019.08.17"]
[Round "1.30"]
[White "Mrozek, Zofia"]
[Black "Zgoda, Damian"]
[Result "0-1"]
[ECO "B06"]
[WhiteElo "1399"]
[BlackElo "1725"]
[Annotator "NA"]
[PlyCount "74"]
[EventDate "2019.08.17"]
[EventType "swiss"]
[EventCountry "POL"]
[SourceTitle "playchess.com"]
[Source "ChessBase"]
[SourceQuality "1"]
[TimeControl "40/5400+30:1800+30"]

1. e4 g6 2. d4 Bg7 3. Nf3 d6 4. h3 a6 5. Bc4 b5 6. Bd3 Bb7 7. Be3 Nd7 8. O-O Ngf6 9. Nbd2 O-O 10. Qe2 c5 11. c3 Rc8 12. Rac1 h6 13. Bb1 Nb6 14. Rfd1 Qc7 15. Bf4 Nh5 16. Be3 Nf6 17. Bf4 e5 18. dxe5 Nh5 19. Be3 dxe5 20. Nb3 Nf4 21. Qe1 Na4 22. Rd2 c4 23. Bxf4 exf4 24. Nbd4 Nc5 25. Rcd1 Rcd8 26. Re2 Rfe8 27. Rdd2 Rd7 28. Rd1 Rde7 29. Nd2 Nd3 30. Qf1 Nxb2 31. Rc1 Na4 32. N2f3 Bxe4 33. Bxe4 Rxe4 34. Rd2 Nc5 35. Rcd1 Nd3 36. Rb1 Bxd4 37. Nxd4 Re1 0-1

[Event "55th Rubinstein Memorial-C 2019"]
[Site "Polanica-Zdroj"]
[Date "2019.08.17"]
[Round "1.31"]
[White "Gromada, Andrzej"]
[Black "Bochenek, Ryszard"]
[Result "1-0"]
[ECO "A05"]
[WhiteElo "1721"]
[BlackElo "1393"]
[Annotator "NA"]
[PlyCount "39"]
[EventDate "2019.08.17"]
[EventType "swiss"]
[EventCountry "POL"]
[SourceTitle "playchess.com"]
[Source "ChessBase"]
[SourceQuality "1"]
[TimeControl "40/5400+30:1800+30"]

1. Nf3 {[%emt 0:00:00]} Nf6 {[%emt 0:00:00]} 2. c4 {[%emt 0:00:00]} g6 {[%emt 0:00:00]} 3. Nc3 {[%emt 0:00:19]} Bg7 {[%emt 0:00:00]} 4. e4 {[%emt 0:00:53]} d6 {[%emt 0:00:00]} 5. d4 {[%emt 0:00:10]} Nbd7 {[%emt 0:00:17]} 6. Be2 {[%emt 0:00:39]} O-O {[%emt 0:00:08]} 7. O-O {[%emt 0:00:13]} e5 {[%emt 0:00:23]} 8. d5 {[%emt 0:05:41]} Nc5 {[%emt 0:02:07]} 9. Nd2 {[%emt 0:00:20]} Bh6 {[%emt 0:02:27]} 10. Qc2 {[%emt 0:10:59]} a5 {[%emt 0:02:14]} 11. a3 {[%emt 0:03:30]} Bd7 {[%emt 0:03:03]} 12. Bf3 {[%emt 0:09:02]} a4 {[%emt 0:05:55]} 13. b4 {[%emt 0:03:55]} Bxd2 {[%emt 0:01:09]} 14. Bxd2 {[%emt 0:03:27]} Nb3 {[%emt 0:00:25]} 15. Rab1 {[%emt 0:00:29]} Nd4 {[%emt 0:01:24]} 16. Qd3 {[%emt 0:00:36]} Qc8 {[%emt 0:20:58]} 17. Bd1 {[%emt 0:03:04]} b5 {[%emt 0:18:03]} 18. c5 {[%emt 0:04:11]} c6 {[%emt 0:03:06]} 19. Bg5 {[%emt 0:00:58]} Qd8 {[%emt 0:01:00]} 20. f4 {[%emt 0:01:48]} 1-0

[Event "55th Rubinstein Memorial-C 2019"]
[Site "Polanica-Zdroj"]
[Date "2019.08.18"]
[Round "2.1"]
[White "Pisarek, Elzbieta"]
[Black "Majek, Kacper"]
[Result "0-1"]
[ECO "C47"]
[WhiteElo "1581"]
[BlackElo "1984"]
[Annotator "NA"]
[PlyCount "85"]
[EventDate "2019.08.17"]
[EventType "swiss"]
[EventCountry "POL"]
[SourceTitle "playchess.com"]
[Source "ChessBase"]
[SourceQuality "1"]
[TimeControl "40/5400+30:1800+30"]

1. e4 {[%emt 0:00:00]} e5 {[%emt 0:00:00]} 2. Nf3 {[%emt 0:00:00]} Nc6 {[%emt 0:00:00]} 3. Nc3 {[%emt 0:00:00]} Nf6 {[%emt 0:00:34]} 4. d4 {[%emt 0:00:10]} exd4 {[%emt 0:00:05]} 5. Nxd4 {[%emt 0:00:04]} Bb4 {[%emt 0:00:06]} 6. Nxc6 {[%emt 0:00:14]} bxc6 {[%emt 0:00:12]} 7. Bd3 {[%emt 0:00:08]} d5 {[%emt 0:00:09]} 8. exd5 {[%emt 0:00:03]} O-O {[%emt 0:00:22]} 9. O-O {[%emt 0:00:33]} cxd5 {[%emt 0:00:07]} 10. h3 {[%emt 0:00:21]} c6 {[%emt 0:00:10]} 11. Qf3 {[%emt 0:00:22]} Bd6 {[%emt 0:00:09]} 12. Bf4 {[%emt 0:00:51]} Rb8 {[%emt 0:00:15]} 13. b3 {[%emt 0:00:57]} Be6 {[%emt 0:00:17]} 14. Ne2 {[%emt 0:02:19]} c5 {[%emt 0:07:36]} 15. Rad1 {[%emt 0:17:13]} a5 {[%emt 0:02:34]} 16. a4 {[%emt 0:06:42]} d4 {[%emt 0:04:41]} 17. Bxd6 {[%emt 0:05:51]} Qxd6 {[%emt 0:00:06]} 18. Nf4 {[%emt 0:00:41]} Bd7 {[%emt 0:03:58]} 19. Rfe1 {[%emt 0:08:03]} Bc6 {[%emt 0:01:27]} 20. Qg3 {[%emt 0:00:15]} Rbd8 {[%emt 0:07:53]} 21. Ne2 {[%emt 0:08:29]} Qd5 {[%emt 0:19:07]} 22. Nf4 {[%emt 0:08:04]} Qd7 {[%emt 0:01:31]} 23. Re5 {[%emt 0:14:13]} g6 {[%emt 0:13:39]} 24. Rxc5 {[%emt 0:09:04]} Rfe8 {[%emt 0:00:02]} 25. Rxa5 {[%emt 0:06:24]} Qd6 {[%emt 0:04:49]} 26. Ra6 {[%emt 0:04:48]} Qc5 {[%emt 0:01:03]} 27. Rc1 {[%emt 0:03:06]} Qa3 {[%emt 0:01:34]} 28. Rd1 {[%emt 0:00:49]} Ne4 {[%emt 0:00:42]} 29. Bxe4 {[%emt 0:00:19]} Bxe4 {[%emt 0:00:02]} 30. Nd3 {[%emt 0:00:25]} Qa2 {[%emt 0:00:38]} 31. Rc1 {[%emt 0:01:49]} Rc8 {[%emt 0:01:39]} 32. Ne1 {[%emt 0:02:48]} Rc3 {[%emt 0:28:44]} 33. Qd6 {[%emt 0:00:36]} d3 {[%emt 0:00:24]} 34. Qd4 {[%emt 0:00:43]} Qb2 {[%emt 0:00:32]} 35. Qe3 {[%emt 0:00:34]} dxc2 {[%emt 0:01:15]} 36. Qd2 {[%emt 0:00:30]} Qxb3 {[%emt 0:00:18]} 37. a5 {[%emt 0:00:27]} Rcc8 {[%emt 0:00:36]} 38. Rb6 {[%emt 0:00:19]} Qa3 {[%emt 0:00:17]} 39. Nxc2 {[%emt 0:00:21]} Qa2 {[%emt 0:00:41]} 40. a6 {[%emt 0:00:54]} Rxc2 {[%emt 0:00:30]} 41. Rxc2 {[%emt 0:30:12]} Bxc2 {[%emt 0:30:07]} 42. Qd7 {[%emt 0:00:40]} Re1+ {[%emt 0:01:02]} 43. Kh2 {[%emt 0:00:07]} 0-1